fUST/lending_fUST_20260114
["ID","MTS","AMOUNT","RATE_DAILY","PERIOD"]
[401898166,1768398646747,-738.47106789,0.00014368,2]
[401898169,1768398646757,-5000.0,0.0001451,2]
[401898170,1768398646767,-100000.0,0.0001459,2]
[401898172,1768398646777,-5004.9338206,0.00014605,2]
[401898175,1768398646787,-496.47127164,0.00014687,2]
[401898177,1768398646799,-32261.07,0.00014687,2]
[401898178,1768398646809,-2398.4119403,0.00014687,2]
[401898179,1768398646819,-181.08010149,0.00014687,2]
[401898180,1768398646829,-900.0,0.00014768,2]
[401898181,1768398646839,-665.99620392,0.00014795,2]
[401898182,1768398646849,-1500.0,0.00014795,2]
[401898183,1768398646859,-1500.0,0.00014795,2]
[401898184,1768398646869,-1540.3270641,0.00014795,2]
[401898185,1768398646879,-805.98884969,0.00014795,2]
[401898186,1768398646890,-622.97821503,0.00014795,2]
[401898187,1768398646900,-200.84224431,0.00014795,2]
[401898188,1768398646911,-1500.0,0.00014795,2]
[401898189,1768398646920,-1479.00156205,0.00014795,2]
[401898190,1768398646930,-1500.0,0.00014795,2]
[401898191,1768398646940,-1082.85856265,0.00014795,2]
[401898192,1768398646953,-1159.70838602,0.00014795,2]
[401898193,1768398646963,-586.73306672,0.00014795,2]
[401898194,1768398646972,-1500.0,0.00014795,2]
[401898195,1768398646982,-1500.0,0.00014795,2]
[401898196,1768398646993,-559.25711422,0.00014795,2]
[401898198,1768398647002,-1018.01129916,0.00014795,2]
[401898200,1768398647011,-1292.00440399,0.00014795,2]
[401898202,1768398647021,-1500.0,0.00014795,2]
[401898204,1768398647030,-1500.0,0.00014795,2]
[401898206,1768398647039,-827.64226173,0.00014795,2]
[401898208,1768398647050,-522.48598281,0.00014795,2]
[401898210,1768398647059,-1500.0,0.00014795,2]
[401898212,1768398647069,-1500.0,0.00014795,2]
[401898214,1768398647078,-1500.0,0.00014795,2]
[401898216,1768398647087,-1500.0,0.00014795,2]
[401898218,1768398647098,-1051.15225971,0.00014795,2]
[401898219,1768398647107,-1500.0,0.00014795,2]
[401898221,1768398647116,-1500.0,0.00014795,2]
[401898223,1768398647125,-1500.0,0.00014795,2]
[401898225,1768398647134,-1500.0,0.00014795,2]
[401898227,1768398647143,-1500.0,0.00014795,2]
[401898229,1768398647152,-1500.0,0.00014795,2]
[401898231,1768398647163,-949.7291255,0.00014795,2]
[401898233,1768398647172,-927.69304459,0.00014795,2]
[401898235,1768398647182,-6719.3340014,0.00014897,2]
[401898237,1768398647192,-403.91919138,0.000149,2]
[401898239,1768398647201,-403.91919137,0.000149,2]
[401898241,1768398647210,-403.91919137,0.000149,2]
[401898243,1768398647220,-2000.0,0.00014916,2]
[401898245,1768398647229,-878.64680697,0.00014916,2]
[401898247,1768398647239,-2000.0,0.00014916,2]
[401898249,1768398647248,-2000.0,0.00014916,2]
[401898251,1768398647258,-1993.46298652,0.00014916,2]
[401898253,1768398647267,-1056.99110983,0.00014916,2]
[401898255,1768398647277,-2000.0,0.00014916,2]
[401898257,1768398647286,-2000.0,0.00014916,2]
[401898259,1768398647296,-503.99870158,0.00014916,2]
[401898261,1768398647306,-2000.0,0.00014916,2]
[401898263,1768398647315,-2000.0,0.00014916,2]
[401898265,1768398647325,-1577.72950273,0.00014916,2]
[401898267,1768398647335,-2000.0,0.00014916,2]
[401898269,1768398647344,-2000.0,0.00014916,2]
[401898271,1768398647354,-2000.0,0.00014916,2]
[401898273,1768398647363,-2000.0,0.00014916,2]
[401898275,1768398647373,-1031.81939639,0.00014916,2]
[401898277,1768398647383,-1504.104065,0.00014924,2]
[401898279,1768398647393,-719.4625218,0.00015,2]
[401898281,1768398647402,-2000.0,0.00015014,7]
[401898283,1768398647411,-1613.0,0.00015047,2]
[401898285,1768398647422,-800.0,0.00015068,2]
[401898287,1768398647431,-46243.551393,0.00015206,7]
[401898289,1768398647441,-514.84070869,0.00015235,2]
[401898291,1768398647450,-2487.15318209,0.00015235,2]
[401898293,1768398647460,-187.78006525,0.00015235,2]
[401898295,1768398647470,-12331.613705,0.00015242,7]
[401898297,1768398647479,-1764.854873,0.00015242,7]
[401898299,1768398647488,-941.66296817,0.00015256,2]
[401898301,1768398647497,-4412.137185,0.00015256,7]
[401898302,1768398647507,-6936.532709,0.00015256,7]
[401898304,1768398647516,-1176.569916,0.00015257,7]
[401898306,1768398647526,-6537.28548756,0.00015257,2]
[401898308,1768398647535,-1200.0,0.00015316,2]
[401898310,1768398647545,-646.70021057,0.00015342,2]
[401898312,1768398647554,-503.42728186,0.00015342,2]
[401898314,1768398647564,-2000.0,0.00015342,2]
[401898317,1768398647574,-2000.0,0.00015342,2]
[401898319,1768398647584,-2000.0,0.00015342,2]
[401898321,1768398647593,-2000.0,0.00015342,2]
[401898323,1768398647603,-1873.84265648,0.00015342,2]
[401898325,1768398647612,-992.62086011,0.00015342,2]
[401898327,1768398647622,-2000.0,0.00015342,2]
[401898329,1768398647633,-2094.03075988,0.00015342,2]
[401898331,1768398647643,-2000.0,0.00015342,2]
[401898333,1768398647653,-655.35549971,0.00015342,2]
[401898335,1768398647662,-749.49335299,0.00015342,2]
[401898337,1768398647672,-2000.0,0.00015342,2]
[401898339,1768398647681,-2000.0,0.00015342,2]
[401898341,1768398647691,-735.30085754,0.00015342,2]
[401898342,1768398647700,-2000.0,0.00015342,2]
[401898344,1768398647710,-11434.83681079,0.00015364,2]
[401898346,1768398647720,-232.92155892,0.000154,2]
[401898348,1768398647729,-220.28034675,0.000154,2]
[401898350,1768398647739,-633.2980032,0.000154,30]
[401898353,1768398647749,-366.24808849,0.000154,2]
[401898355,1768398647760,-2500.0,0.00015464,2]
[401898357,1768398647770,-2500.0,0.00015464,2]
[401898359,1768398647780,-2500.0,0.00015464,2]
[401898361,1768398647790,-2500.0,0.00015464,2]
[401898368,1768398647859,-2500.0,0.00015464,2]
[401898370,1768398647871,-2500.0,0.00015464,2]
[401898372,1768398647881,-2500.0,0.00015464,2]
[401898374,1768398647891,-1005.48440654,0.00015464,2]
[401898377,1768398647902,-2500.0,0.00015464,2]
[401898378,1768398647912,-2500.0,0.00015464,2]
[401898380,1768398647921,-2500.0,0.00015464,2]
[401898382,1768398647931,-1000.0,0.00015514,2]
[401898384,1768398647943,-492.0,0.00015514,2]
[401898386,1768398647953,-9145.76016857,0.00015774,2]
[401898388,1768398647963,-533.88981491,0.00015783,2]
[401898390,1768398647972,-2579.17784983,0.00015783,2]
[401898392,1768398647984,-194.72792766,0.00015783,2]
[401898394,1768398647993,-2941.424791,0.00015864,7]
[401898396,1768398648003,-1500.0,0.00015864,2]
[401898399,1768398648014,-115608.878483,0.0001589,7]
[401898401,1768398648023,-2500.0,0.0001589,2]
[401898402,1768398648032,-2500.0,0.0001589,2]
[401898404,1768398648042,-559.4878042,0.0001589,2]
[401898406,1768398648051,-2500.0,0.0001589,2]
[401898408,1768398648061,-1711.66599686,0.0001589,2]
[401898410,1768398648071,-2500.0,0.0001589,2]
[401898412,1768398648080,-2500.0,0.0001589,2]
[401898414,1768398648089,-2500.0,0.0001589,2]
[401898416,1768398648099,-380.12579905,0.0001589,2]
[401898418,1768398648109,-232.92155892,0.0001599,9]
[401898420,1768398648118,-3000.0,0.00016012,2]
[401898422,1768398648128,-30829.034262,0.00016012,7]
[401898424,1768398648138,-3000.0,0.00016012,2]
[401898426,1768398648148,-1185.37019291,0.00016012,2]
[401898428,1768398648157,-3000.0,0.00016012,2]
[401898430,1768398648167,-3000.0,0.00016012,2]
[401898432,1768398648176,-3000.0,0.00016012,2]
[401898434,1768398648186,-3000.0,0.00016012,2]
[401898436,1768398648196,-1671.14126243,0.00016012,2]
[401898438,1768398648207,-3000.0,0.00016012,2]
[401898440,1768398648217,-3000.0,0.00016012,2]
[401898442,1768398648228,-1600.0,0.00016164,2]
[401898444,1768398648238,-620.66490016,0.0001617,30]
[401898446,1768398648248,-1089.56424793,0.00016268,9]
[401898448,1768398648258,-2000.0,0.00016329,7]
[401898450,1768398648267,-553.64373807,0.00016331,2]
[401898452,1768398648277,-2674.60743027,0.00016331,2]
[401898454,1768398648286,-201.93286099,0.00016331,2]
[401898456,1768398648296,-1800.0,0.00016412,2]
[401898457,1768398648306,-500.0,0.00016438,2]
[401898459,1768398648316,-367.29391014,0.00016438,2]
[401898461,1768398648327,-500.0,0.00016438,2]
[401898463,1768398648337,-500.0,0.00016438,2]
[401898466,1768398648349,-500.0,0.00016438,2]
[401898467,1768398648359,-500.0,0.00016438,2]
[401898469,1768398648369,-500.0,0.00016438,2]
[401898471,1768398648379,-595.30780858,0.00016438,2]
[401898473,1768398648390,-151.0,0.00016438,2]
[401898475,1768398648400,-7353.561976,0.00016438,7]
[401898477,1768398648411,-200.0,0.00016438,2]
[401898479,1768398648421,-164.26686219,0.00016438,2]
[401898481,1768398648431,-151.0,0.00016438,2]
[401898483,1768398648441,-202.375128,0.00016438,2]
[401898485,1768398648451,-3000.0,0.00016438,2]
[401898487,1768398648461,-2544.67516775,0.00016438,2]
[401898489,1768398648472,-3000.0,0.00016438,2]
[401898492,1768398648483,-2819.68437302,0.00016438,2]
[401898494,1768398648493,-3000.0,0.00016438,2]
[401898496,1768398648502,-3000.0,0.00016438,2]
[401898497,1768398648512,-77072.585655,0.00016438,7]
[401898500,1768398648522,-11030.342963,0.00016438,7]
[401898501,1768398648532,-260.29560408,0.00016438,2]
[401898503,1768398648543,-184.29,0.0001644,2]
[401898505,1768398648553,-184.29,0.0001644,2]
[401898507,1768398648564,-184.29,0.0001644,2]
[401898509,1768398648573,-184.29,0.0001644,2]
[401898511,1768398648583,-200.0,0.00016473,2]
[401898513,1768398648593,-2258.0,0.00016551,2]
[401898516,1768398648604,-3500.0,0.0001656,2]
[401898517,1768398648614,-3500.0,0.0001656,2]
[401898519,1768398648624,-3500.0,0.0001656,2]
[401898522,1768398648634,-3500.0,0.0001656,2]
[401898524,1768398648644,-3500.0,0.0001656,2]
[401898526,1768398648653,-3500.0,0.0001656,2]
[401898528,1768398648663,-3500.0,0.0001656,2]
[401898529,1768398648673,-416.13825137,0.0001656,2]
[401898531,1768398648682,-232.92155892,0.0001658,17]
[401898534,1768398648694,-27575.857407,0.0001658,7]
[401898535,1768398648703,-8897.66012552,0.00016649,2]
[401898537,1768398648714,-11945.48266915,0.00016649,2]
[401898539,1768398648723,-574.12855637,0.00016879,2]
[401898541,1768398648733,-2773.56790519,0.00016879,2]
[401898543,1768398648743,-209.40437684,0.00016879,2]
[401898545,1768398648752,-2100.0,0.0001696,2]
[401898548,1768398648762,-620.03324501,0.00016979,30]
[401898550,1768398648773,-270.0,0.00016986,2]
[401898552,1768398648783,-3587.94374426,0.00016986,2]
[401898554,1768398648794,-3500.0,0.00016986,2]
[401898556,1768398648804,-3500.0,0.00016986,2]
[401898558,1768398648813,-3500.0,0.00016986,2]
[401898560,1768398648825,-16195.7903029,0.00017041,2]
[401898562,1768398648835,-1000.0,0.00017065,2]
[401898564,1768398648845,-791.0,0.00017065,2]
[401898566,1768398648855,-4000.0,0.00017108,2]
[401898568,1768398648865,-4000.0,0.00017108,2]
[401898570,1768398648875,-4000.0,0.00017108,2]
[401898571,1768398648886,-1692.29139729,0.00017108,2]
[401898573,1768398648897,-4000.0,0.00017108,2]
[401898575,1768398648907,-4000.0,0.00017108,2]
[401898578,1768398648918,-3392.75982988,0.00017108,2]
[401898580,1768398648929,-232.92155892,0.0001717,25]
[401898582,1768398648942,-11434.83681079,0.00017243,2]
[401898584,1768398648952,-1051.72747095,0.00017256,2]
[401898586,1768398648962,-1041.66666667,0.00017258,2]
[401898588,1768398648973,-155.0,0.00017259,2]
[401898589,1768398648983,-18383.904938,0.0001726,7]
[401898592,1768398648996,-2400.0,0.0001726,2]
[401898593,1768398649008,-1089.56424793,0.00017279,10]
[401898596,1768398649019,-1140.2,0.00017287,2]
[401898597,1768398649030,-5000.0,0.00017412,2]
[401898600,1768398649042,-595.37131296,0.00017427,2]
[401898602,1768398649053,-2876.18991768,0.00017427,2]
[401898603,1768398649063,-19268.146413,0.00017487,7]
[401898605,1768398649073,-2400.0,0.00017508,2]
[401898607,1768398649084,-5138.172377,0.00017528,7]
[401898609,1768398649094,-735.356197,0.00017528,7]
[401898611,1768398649106,-174.48080933,0.00017534,2]
[401898613,1768398649117,-400.0,0.00017534,2]
[401898615,1768398649127,-4000.0,0.00017534,2]
[401898617,1768398649137,-4000.0,0.00017534,2]
[401898619,1768398649147,-4000.0,0.00017534,2]
[401898621,1768398649157,-2890.221962,0.00017544,7]
[401898623,1768398649168,-490.237465,0.00017545,7]
[401898625,1768398649178,-2000.0,0.00017644,7]
[401898627,1768398649188,-4500.0,0.00017656,2]
[401898630,1768398649200,-3199.34641428,0.00017656,2]
[401898632,1768398649210,-4500.0,0.00017656,2]
[401898633,1768398649221,-4500.0,0.00017656,2]
[401898635,1768398649231,-4500.0,0.00017656,2]
[401898637,1768398649241,-232.92155892,0.0001776,32]
[401898639,1768398649251,-400.30202268,0.00017842,2]
[401898641,1768398649261,-168.26957802,0.00017883,2]
[401898643,1768398649271,-617.40005154,0.00017975,2]
[401898645,1768398649282,-2982.60894464,0.00017975,2]
[401898647,1768398649293,-2700.0,0.00018056,2]
[401898649,1768398649305,-160.35823449,0.00018069,2]
[401898652,1768398649316,-4500.0,0.00018082,2]
[401898654,1768398649326,-4500.0,0.00018082,2]
[401898656,1768398649336,-4500.0,0.00018082,2]
[401898657,1768398649347,-5000.0,0.00018204,2]
[401898660,1768398649358,-1417.48910491,0.00018204,2]
[401898662,1768398649369,-5000.0,0.00018204,2]
[401898664,1768398649383,-5000.0,0.00018204,2]
[401898666,1768398649395,-3162.0,0.00018207,2]
[401898668,1768398649406,-1089.56424793,0.0001829,12]
[401898670,1768398649418,-232.92155892,0.00018351,40]
[401898672,1768398649429,-3200.0,0.00018356,2]
[401898674,1768398649439,-163.33303318,0.00018516,2]
[401898676,1768398649450,-640.24385345,0.00018523,2]
[401898678,1768398649460,-3092.96547559,0.00018523,2]
[401898679,1768398649470,-3000.0,0.00018604,2]
[401898680,1768398649481,-600.0,0.0001863,2]
[401898681,1768398649492,-5000.0,0.0001863,2]
[401898682,1768398649502,-5000.0,0.0001863,2]
[401898683,1768398649513,-5000.0,0.0001863,2]
[401898685,1768398649523,-1140.2,0.00018669,2]
[401898687,1768398649532,-4088.14205975,0.00018752,2]
[401898690,1768398649543,-5500.0,0.00018752,2]
[401898692,1768398649554,-5500.0,0.00018752,2]
[401898694,1768398649565,-1000.0,0.00018772,2]
[401898696,1768398649575,-1000.0,0.00018772,2]
[401898698,1768398649584,-5000.0,0.00018863,2]
[401898700,1768398649595,-303.10001603,0.000189,2]
[401898702,1768398649605,-303.10001603,0.000189,2]
[401898704,1768398649615,-232.92155892,0.00018941,48]
[401898706,1768398649625,-2000.0,0.00018959,7]
[401898708,1768398649636,-275.37,0.00018965,2]
[401898710,1768398649646,-663.93287602,0.00019071,2]
[401898712,1768398649656,-303.10001603,0.00019089,2]
[401898714,1768398649667,-11434.83681079,0.00019123,2]
[401898716,1768398649678,-3300.0,0.00019152,2]
[401898718,1768398649688,-1000.0,0.00019178,2]
[401898720,1768398649698,-2535.6762,0.00019178,2]
[401898722,1768398649709,-2535.6762,0.00019178,2]
[401898724,1768398649719,-2535.6762,0.00019178,2]
[401898726,1768398649728,-2535.6762,0.00019178,2]
[401898728,1768398649738,-2410.18,0.00019178,2]
[401898730,1768398649749,-160.00257127,0.00019178,2]
[401898732,1768398649759,-151.0,0.00019178,2]
[401898734,1768398649768,-151.0,0.00019178,2]
[401898736,1768398649778,-151.0,0.00019178,2]
[401898738,1768398649787,-151.0,0.00019178,2]
[401898740,1768398649799,-5500.0,0.00019178,2]
[401898742,1768398649809,-5500.0,0.00019178,2]
[401898744,1768398649819,-5500.0,0.00019178,2]
[401898746,1768398649830,-167.77,0.000192,2]
[401898748,1768398649840,-305.62,0.000192,2]
[401898751,1768398649851,-303.2,0.000192,2]
[401898753,1768398649862,-39666.91,0.000192,2]
[401898755,1768398649872,-151.0,0.000192,2]
[401898757,1768398649882,-1161.79197372,0.00019256,2]
[401898759,1768398649893,-303.10001603,0.00019278,2]
[401898761,1768398649904,-6000.0,0.000193,2]
[401898763,1768398649914,-4040.44472477,0.000193,2]
[401898765,1768398649925,-1089.56424793,0.00019301,13]
[401898767,1768398649936,-307.61092211,0.00019452,2]
[401898769,1768398649951,-303.10001603,0.00019467,2]
[401898771,1768398649961,-3613.769284,0.00019498,2]
[401898773,1768398649971,-232.92155892,0.00019531,56]
[401898775,1768398649983,-688.49839244,0.00019619,2]
[401898777,1768398649994,-303.10001603,0.00019656,2]
[401898779,1768398650005,-1056.20051056,0.000197,2]
[401898782,1768398650017,-800.0,0.00019726,2]
[401898784,1768398650028,-250.0,0.00019726,2]
[401898786,1768398650039,-6000.0,0.00019726,2]
[401898788,1768398650053,-6000.0,0.00019726,2]
[401898790,1768398650063,-6000.0,0.00019726,2]
[401898792,1768398650075,-454.65002405,0.00019845,4]
[401898794,1768398650086,-6500.0,0.00019848,2]
[401898796,1768398650099,-9661.0,0.0002,2]
[401898798,1768398650109,-500.0,0.0002,2]
[401898800,1768398650121,-500.0,0.0002,2]
[401898802,1768398650131,-500.0,0.0002,2]
[401898804,1768398650142,-151.55000802,0.0002,2]
[401898806,1768398650152,-300.0,0.0002,2]
[401898809,1768398650163,-4427.0,0.00020027,2]
[401898811,1768398650174,-454.65002405,0.00020034,4]
[401898813,1768398650185,-806.340919,0.00020046,2]
[401898815,1768398650195,-1140.2,0.00020052,2]
[401898817,1768398650206,-232.92155892,0.00020121,63]
[401898819,1768398650218,-713.97283296,0.00020167,2]
[401898821,1768398650229,-454.65002405,0.00020223,4]
[401898823,1768398650239,-200.91058964,0.00020274,2]
[401898825,1768398650250,-5902.72600724,0.00020274,2]
[401898827,1768398650260,-2000.0,0.00020274,7]
[401898829,1768398650270,-5446.58201638,0.00020274,2]
[401898831,1768398650281,-6500.0,0.00020274,2]
[401898833,1768398650291,-1089.56424793,0.00020312,14]
[401898835,1768398650303,-3073.24025849,0.00020396,2]
[401898836,1768398650313,-454.65002405,0.00020412,4]
[401898839,1768398650324,-294.66,0.0002049,2]
[401898841,1768398650334,-305.62,0.000205,2]
[401898842,1768398650345,-303.2,0.000205,2]
[401898844,1768398650354,-39666.91,0.000205,2]
[401898846,1768398650365,-151.0,0.000205,2]
[401898848,1768398650375,-151.0,0.000205,2]
[401898850,1768398650385,-151.0,0.000205,2]
[401898852,1768398650396,-454.65002405,0.00020601,4]
[401898854,1768398650407,-1000.0,0.00020649,2]
[401898856,1768398650417,-1000.0,0.00020649,2]
[401898858,1768398650428,-579.0,0.00020649,2]
[401898860,1768398650438,-232.92155892,0.00020711,71]
[401898862,1768398650449,-740.38982778,0.00020715,2]
[401898864,1768398650460,-1000.0,0.00020822,2]
[401898866,1768398650471,-7000.0,0.00020822,2]
[401898868,1768398650482,-167.77,0.000209,2]
[401898870,1768398650493,-151.0,0.000209,3]
[401898872,1768398650503,-151.0,0.000209,4]
[401898874,1768398650514,-500.0,0.00021,7]
[401898876,1768398650525,-11434.83681079,0.00021002,2]
[401898878,1768398650535,-1271.85647649,0.00021256,2]
[401898880,1768398650546,-767.7842514,0.00021263,2]
[401898883,1768398650557,-232.92155892,0.00021301,79]
[401898885,1768398650569,-1089.56424793,0.00021323,16]
[401898887,1768398650580,-7500.0,0.0002137,2]
[401898889,1768398650591,-1140.2,0.00021434,2]
[401898891,1768398650601,-2000.0,0.00021589,7]
[401898893,1768398650613,-796.19226871,0.00021811,2]
[401898895,1768398650625,-232.92155892,0.00021891,86]
[401898897,1768398650637,-151.0,0.00021918,2]
[401898899,1768398650648,-151.0,0.00021918,2]
[401898901,1768398650659,-163.463878,0.00021918,2]
[401898903,1768398650669,-151.0,0.00021918,2]
[401898905,1768398650680,-151.0,0.00021918,2]
[401898907,1768398650691,-151.0,0.00021918,2]
[401898909,1768398650702,-151.0,0.00021918,2]
[401898911,1768398650713,-151.0,0.00021918,2]
[401898913,1768398650724,-151.0,0.00021918,2]
[401898915,1768398650734,-160.546344,0.00021918,2]
[401898916,1768398650744,-151.0,0.00021918,2]
[401898918,1768398650755,-169.444097,0.00021918,2]
[401898920,1768398650765,-151.0,0.00021918,2]
[401898922,1768398650776,-151.0,0.00021918,2]
[401898925,1768398650788,-228.779396,0.00021918,2]
[401898927,1768398650803,-151.0,0.00021918,2]
[401898929,1768398650814,-561.150045,0.00021918,2]
[401898931,1768398650826,-561.150045,0.00021918,2]
[401898933,1768398650837,-561.150045,0.00021918,2]
[401898935,1768398650848,-561.150045,0.00021918,2]
[401898937,1768398650859,-151.0,0.00021918,2]
[401898939,1768398650870,-151.0,0.00021918,2]
[401898941,1768398650882,-180.50802,0.00021918,2]
[401898943,1768398650893,-151.0,0.00021918,2]
[401898945,1768398650903,-151.0,0.00021918,2]
[401898947,1768398650914,-151.0,0.00021918,2]
[401898949,1768398650924,-151.0,0.00021918,2]
[401898951,1768398650935,-151.0,0.00021918,2]
[401898953,1768398650948,-151.0,0.00021918,2]
[401898955,1768398650959,-151.0,0.00021918,2]
[401898957,1768398650970,-369.592925,0.00021918,2]
[401898959,1768398650981,-151.0,0.00021918,2]
[401898961,1768398650993,-369.592925,0.00021918,2]
[401898963,1768398651004,-151.0,0.00021918,2]
[401898964,1768398651016,-369.592925,0.00021918,2]
[401898967,1768398651027,-369.592925,0.00021918,2]
[401898969,1768398651038,-490.347103,0.00021918,2]
[401898971,1768398651051,-490.347103,0.00021918,2]
[401898973,1768398651061,-490.347103,0.00021918,2]
[401898975,1768398651072,-490.347103,0.00021918,2]
[401898977,1768398651083,-151.0,0.00021918,2]
[401898979,1768398651093,-195.156412,0.00021918,2]
[401898981,1768398651104,-195.156412,0.00021918,2]
[401898983,1768398651115,-195.156412,0.00021918,2]
[401898985,1768398651125,-195.156412,0.00021918,2]
[401898987,1768398651135,-196.38849,0.00021918,2]
[401898989,1768398651146,-196.38849,0.00021918,2]
[401898991,1768398651156,-196.38849,0.00021918,2]
[401898993,1768398651167,-196.38849,0.00021918,2]
[401898994,1768398651178,-202.037626,0.00021918,2]
[401898996,1768398651189,-202.037626,0.00021918,2]
[401898998,1768398651201,-202.037626,0.00021918,2]
[401899000,1768398651211,-202.037626,0.00021918,2]
[401899002,1768398651222,-151.0,0.00021918,2]
[401899004,1768398651232,-151.0,0.00021918,2]
[401899006,1768398651243,-151.0,0.00021918,2]
[401899008,1768398651253,-245.815152,0.00021918,2]
[401899010,1768398651263,-442.59271,0.00021918,2]
[401899012,1768398651273,-442.59271,0.00021918,2]
[401899014,1768398651283,-442.59271,0.00021918,2]
[401899016,1768398651294,-442.59271,0.00021918,2]
[401899017,1768398651306,-151.0,0.00021918,2]
[401899019,1768398651316,-160.471335,0.00021918,2]
[401899021,1768398651326,-151.0,0.00021918,2]
[401899023,1768398651338,-633.419635,0.00021918,2]
[401899025,1768398651348,-633.419635,0.00021918,2]
[401899027,1768398651359,-151.0,0.00021918,2]
[401899029,1768398651370,-633.419635,0.00021918,2]
[401899031,1768398651381,-633.419635,0.00021918,2]
[401899033,1768398651391,-424.867584,0.00021918,2]
[401899034,1768398651402,-424.867584,0.00021918,2]
[401899036,1768398651413,-424.867584,0.00021918,2]
[401899038,1768398651424,-169.388304,0.00021918,2]
[401899040,1768398651434,-424.867584,0.00021918,2]
[401899042,1768398651446,-151.0,0.00021918,2]
[401899044,1768398651457,-151.0,0.00021918,2]
[401899046,1768398651468,-227.437478,0.00021918,2]
[401899047,1768398651478,-151.0,0.00021918,2]
[401899049,1768398651488,-151.0,0.00021918,2]
[401899051,1768398651497,-151.0,0.00021918,2]
[401899053,1768398651507,-151.0,0.00021918,2]
[401899055,1768398651517,-151.0,0.00021918,2]
[401899057,1768398651527,-181.655666,0.00021918,2]
[401899059,1768398651538,-151.0,0.00021918,2]
[401899060,1768398651548,-151.0,0.00021918,2]
[401899062,1768398651558,-272.028283,0.00021918,2]
[401899064,1768398651567,-151.0,0.00021918,2]
[401899066,1768398651577,-216.013567,0.00021918,2]
[401899068,1768398651587,-151.0,0.00021918,2]
[401899069,1768398651597,-151.3487,0.00021918,2]
[401899071,1768398651606,-216.013567,0.00021918,2]
[401899073,1768398651616,-151.3487,0.00021918,2]
[401899075,1768398651627,-216.013567,0.00021918,2]
[401899077,1768398651637,-151.3487,0.00021918,2]
[401899079,1768398651648,-216.013567,0.00021918,2]
[401899080,1768398651658,-151.3487,0.00021918,2]
[401899082,1768398651668,-151.0,0.00021918,2]
[401899084,1768398651678,-170.441606,0.00021918,2]
[401899086,1768398651689,-151.0,0.00021918,2]
[401899088,1768398651699,-162.301205,0.00021918,2]
[401899090,1768398651709,-244.488138,0.00021918,2]
[401899092,1768398651719,-244.488138,0.00021918,2]
[401899093,1768398651729,-244.488138,0.00021918,2]
[401899095,1768398651739,-244.488138,0.00021918,2]
[401899097,1768398651749,-151.0,0.00021918,2]
[401899111,1768398651760,-151.0,0.00021918,2]
[401899116,1768398651947,-151.0,0.00021918,2]
[401899118,1768398651956,-210.162215,0.00021918,2]
[401899120,1768398651966,-240.755518,0.00021918,2]
[401899121,1768398651975,-151.0,0.00021918,2]
[401899123,1768398651987,-151.0,0.00021918,2]
[401899125,1768398651996,-151.0,0.00021918,2]
[401899127,1768398652008,-1200.0,0.00021918,2]
[401899129,1768398652018,-8000.0,0.00021918,2]
[401899131,1768398652028,-151.0,0.00021918,2]
[401899133,1768398652037,-151.0,0.00021918,2]
[401899135,1768398652047,-151.0,0.00021918,2]
[401899137,1768398652058,-151.0,0.00021918,2]
[401899139,1768398652067,-879.438014,0.00021918,2]
[401899141,1768398652077,-879.438014,0.00021918,2]
[401899142,1768398652086,-879.438014,0.00021918,2]
[401899144,1768398652096,-879.438014,0.00021918,2]
[401899146,1768398652105,-2469.16,0.00022,7]
[401899148,1768398652115,-6198.0,0.0002203,2]
[401899150,1768398652124,-180.09725252,0.00022102,2]
[401899152,1768398652134,-155.0,0.0002219,2]
[401899154,1768398652144,-1089.56424793,0.00022334,17]